Cogmind - Beta 10.2 *** ADVENTURER MODE // 2021.03.30 @ 18:15:07 Player: RomanTheEvil Result: Destroyed by Y-45 Defender with Heavy Assault Rifle Performance ------------- Evolutions (1) 500 Regions Visited (3) 600 Robots Destroyed (21) 105 Value Destroyed (534) 534 Prototype IDs (2) 40 Alien Tech Used (0) 0 Bonus (0) 0 TOTAL SCORE: 1779 Bonus ------- None Cogmind --------- Core Integrity 0/400 Matter 300/300 Energy 100/100 System Corruption 0% Temperature Cool (9) Movement Core (50) Location -9/Storage Parts ------- > --- POWER (1) -------- (None) > --- PROPULSION (4) --- (None) > --- UTILITY (2) ------ Visual Processing Unit > --- WEAPON (2) ------- Katana > --- INVENTORY (4) ---- Datajack Peak State ------------ > --- POWER ------------ Ion Engine > --- PROPULSION ------- Aluminum Leg Aluminum Leg Aluminum Leg Aluminum Leg > --- UTILITY ---------- Small Storage Unit Signal Interpreter > --- WEAPON ----------- Small Laser Rocket Launcher > --- INVENTORY -------- Ion Engine Visual Processing Unit Small Laser Datajack [Rating: 10] Favorites ----------- Power Ion Engine Engine Ion Engine Propulsion Aluminum Leg Leg Aluminum Leg Utility Small Storage Unit Storage Small Storage Unit Processor Signal Interpreter Weapon Medium Laser Energy Gun Medium Laser Launcher Rocket Launcher Impact Weapon Heavy Hammer Slashing Weapon Katana Build | -11 -10 -9 -9 ------- Run | Scr Mat Mat Sto Slots Evolved 2 | . . 2 . Power . | . . . . Propulsion 2 | . . 2 . Utility . | . . . . Weapon . | . . . . Parts Attached 25 | 6 6 5 8 Power 7 | 1 1 1 4 Engine 7 | 1 1 1 4 Core . | . . . . Reactor . | . . . . Propulsion 6 | 2 2 2 . Treads . | . . . . Leg 6 | 2 2 2 . Wheel . | . . . . Hover . | . . . . Flight . | . . . . Utility 3 | 1 1 . 1 Device . | . . . . Storage 1 | 1 . . . Processor 2 | . 1 . 1 Hackware . | . . . . Protection . | . . . . Artifact . | . . . . Weapon 9 | 2 2 2 3 Energy Gun 6 | 2 2 1 1 Energy Cannon . | . . . . Ballistic Gun . | . . . . Ballistic Cannon . | . . . . Launcher 1 | . . 1 . Special Weapon . | . . . . Impact Weapon 1 | . . . 1 Slashing Weapon 1 | . . . 1 Piercing Weapon . | . . . . Special Melee Weapon . | . . . . Unidentified Prototypes . | . . . . Parts Lost 16 | . 2 9 5 Power 5 | . . 2 3 Propulsion 4 | . . 4 . Utility 1 | . . . 1 Weapon 6 | . 2 3 1 Highest Loss Streak 9 | . 1 9 3 Average Slot Usage (%) 80 | . 99 85 34 Engine 11 | . 14 9 7 Leg 22 | . 28 35 . Storage 11 | . 14 11 8 Processor 11 | . 13 11 9 Energy Gun 19 | . 27 15 4 Naked Turns . | . . . . Heaviest Build 14 | 13 13 14 12 Greatest Support 40 | 20 20 40 3 Greatest Overweight (x) 3 | . . 1 3 Average Overweight (x) . | . . . 2 Largest Inventory Capacity 6 | 6 6 6 6 Average Capacity 5 | 5 6 6 5 Most Carried 6 | 4 6 4 4 Average Carried 3 | 2 4 3 2 Final Capacity 6 | 6 6 6 4 Final Carried 5 | 4 5 2 1 Class Distribution -------------------- 84% | Mutant 15% | Scavenger-Mutant Dominant Class ---------------- Mutant | -10/Materials Scavenger-Mutant | -9/Materials Mutant | -9/Storage Resources | -11 -10 -9 -9 ----------- Run | Scr Mat Mat Sto Matter Collected 500 | 199 154 . 147 Remotely . | . . . . Salvage Created 564 | . 329 141 94 Parts 39 | . 23 10 6 Haulers Intercepted . | . . . . Recyclers Shooed . | . . . . Parts Field Recycled . | . . . . Retrieved Matter . | . . . . Parts Self-Destructed . | . . . . Prevented . | . . . . Kills | -11 -10 -9 -9 ------- Run | Scr Mat Mat Sto Combat Hostiles Destroyed 14 | . 8 4 2 Melee 1 | . . . 1 Guns 9 | . 8 . 1 AOE 4 | . . 4 . Classes Destroyed 6 | . 4 2 . Worker 2 | . 1 1 . Builder 1 | . . 1 . Watcher 4 | . 3 1 . Swarmer 3 | . 3 . . Grunt 9 | . 5 3 1 Duelist 2 | . . 1 1 Best Kill Streak 6 | . 3 6 1 Combat Bots Only 4 | . 3 4 1 Max Kills in Single Turn 2 | . 2 2 1 Gunslinging 1 | . 1 . . Exploded 2 | . . 2 . Melee 1 | . . . 1 Uniques/NPCs Destroyed . | . . . . Combat | -11 -10 -9 -9 -------- Run | Scr Mat Mat Sto Damage Taken 1477 | . 262 897 318 Core 463 | . 50 245 168 Absorbed by Shields . | . . . . Core Remaining (%) 90 | 100 80 . . Volleys Fired 62 | . 45 12 5 Largest 2 | . 2 2 1 Hottest 100 | . 100 80 65 Shots Fired 116 | . 87 24 5 Gun 109 | . 87 17 5 Cannon . | . . . . Launcher 7 | . . 7 . Special . | . . . . Kinetic . | . . . . Thermal 109 | . 87 17 5 Explosive 7 | . . 7 . Electromagnetic . | . . . . Robot Hit Streak 17 | . 17 8 12 Robot Miss Streak 2 | . 2 1 1 Penetration Max . | . . . . Secondary Targets 1 | . 1 . . Max Gunslinging Chain 1 | . 1 . . Shots Hit Robots 65 | . 41 14 10 Core Hits 35 | . 18 14 3 Critical Hits . | . . . . Critical Kills . | . . . . Critical Parts Destroyed . | . . . . Melee Attacks 6 | . . . 6 Impact 6 | . . . 6 Slashing . | . . . . Piercing . | . . . . Sneak Attacks . | . . . . Combat Hostiles . | . . . . Follow-up Attacks . | . . . . Damage Inflicted 1309 | . 459 647 203 Guns 632 | . 459 111 62 Cannons . | . . . . Explosions 536 | . . 536 . Melee 141 | . . . 141 Ramming . | . . . . Kinetic . | . . . . Thermal 632 | . 459 111 62 Explosive 536 | . . 536 . Electromagnetic . | . . . . Impact 141 | . . . 141 Slashing . | . . . . Piercing . | . . . . Highest Corruption . | . . . . Average Corruption . | . . . . Corruption Purged . | . . . . Overload Shots . | . . . . Overflow Damage 20 | . . 20 . Projectiles . | . . . . Explosions 20 | . . 20 . Melee . | . . . . Knockbacks 2 | . . . 2 Impact 2 | . . . 2 Kinetic . | . . . . Secondary . | . . . . Self-Inflicted Damage 18 | . . 18 . Shots 1 | . . 1 . Rammed . | . . . . Targets Rammed . | . . . . Kicked . | . . . . Crushed . | . . . . Highest Temperature 400 | . 400 137 49 Average Temperature 112 | . 134 45 23 Received Heat Transfer 576 | . 84 420 72 Effects 2 | . 2 . . Shutdowns 1 | . 1 . . Matter Decay 1 | . 1 . . Siege Activations . | . . . . Robots Corrupted . | . . . . Combat Hostiles . | . . . . Parts Fried . | . . . . Impact Corruptions . | . . . . Robots Melted . | . . . . Combat Hostiles . | . . . . Parts Melted 2 | . 2 . . Heat Transferred 1660 | . 1262 250 148 Parts Sabotaged . | . . . . Parts Stolen . | . . . . Parts Stripped . | . . . . Power Chain Reactions . | . . . . Missiles Intercepted . | . . . . Alert | -11 -10 -9 -9 ------- Run | Scr Mat Mat Sto Peak Influence 206 | . 206 123 40 Initial 27 | . . 27 20 Average 69 | . 107 51 24 Maximum Alert Level 1 | . 1 . . Low Security (%) 98 | 100 96 100 100 Level 1 1 | . 3 . . Level 2 . | . . . . Level 3 . | . . . . Level 4 . | . . . . Level 5 . | . . . . High Security . | . . . . Max Security . | . . . . Squads Dispatched 2 | . 1 1 . Investigation 1 | . 1 . . Extermination . | . . . . Reinforcement 1 | . . 1 . Assault . | . . . . Garrison . | . . . . Intercept . | . . . . Construction Impeded . | . . . . Haulers Reinforced . | . . . . Stealth | -11 -10 -9 -9 --------- Run | Scr Mat Mat Sto Distress Signals 2 | . . 1 1 Communications Jammed . | . . . . Distress Signals . | . . . . Times Spotted 26 | . 12 10 4 Peak Tracking Total 8 | . 4 8 3 Tactical Retreats . | . . . . Traps | -11 -10 -9 -9 ------- Run | Scr Mat Mat Sto Traps Triggered . | . . . . Indirectly . | . . . . Trap Hack Attempts . | . . . . Triggered . | . . . . Disarmed . | . . . . Reprogrammed . | . . . . Reused . | . . . . Traps Extracted . | . . . . Installed . | . . . . Triggered . | . . . . Machines | -11 -10 -9 -9 ---------- Run | Scr Mat Mat Sto Machines Disabled 2 | . . 2 . Max in Single Turn 1 | . . 1 . Machines Sabotaged . | . . . . Garrisons Compromised . | . . . . Overloaded Fab Kills . | . . . . Fab Network Shutdowns . | . . . . Hacking | -11 -10 -9 -9 --------- Run | Scr Mat Mat Sto Machines Accessed 5 | . 4 1 . Terminals 5 | . 4 1 . Fabricators . | . . . . Repair Stations . | . . . . Recycling Units . | . . . . Scanalyzers . | . . . . Garrison Access . | . . . . Total Hacks 18 | . 14 4 . Successful 12 | . 9 3 . Failed 6 | . 5 1 . Catastrophic . | . . . . Database Lockouts . | . . . . Manual 8 | . 6 2 . Terminals 18 | . 14 4 . Fabricators . | . . . . Repair Stations . | . . . . Recycling Units . | . . . . Scanalyzers . | . . . . Garrison Access . | . . . . Terminal Hacks 12 | . 9 3 . Robot Analysis 1 | . . 1 . Prototype ID Bank 2 | . 2 . . Level Access Points 1 | . 1 . . Emergency Access Points 1 | . 1 . . Terminal Index 1 | . 1 . . Alert Level 2 | . 2 . . Unreport Threat 1 | . . 1 . Locate Traps 2 | . 1 1 . Maintenance Status 1 | . 1 . . Fabricator Hacks . | . . . . Repair Station Hacks . | . . . . Recycling Unit Hacks . | . . . . Scanalyzer . | . . . . Garrison Access Hacks . | . . . . Unauthorized Hacks . | . . . . Terminals . | . . . . Fabricators . | . . . . Repair Stations . | . . . . Recycling Units . | . . . . Scanalyzers . | . . . . Garrison Access . | . . . . Data Cores Recovered . | . . . . Used . | . . . . Hacking Detections 5 | . 4 1 . Full Trace Events 2 | . 1 1 . Feedback Events . | . . . . Feedback Blocked . | . . . . Robot Schematics Acquired . | . . . . Robots Built . | . . . . Matter . | . . . . Time . | . . . . Total Robot Build Rating . | . . . . Part Schematics Acquired . | . . . . Parts Built . | . . . . Matter . | . . . . Time . | . . . . Total Part Build Rating . | . . . . Parts Repaired . | . . . . Time . | . . . . Parts Recycled . | . . . . Recycled Matter . | . . . . Retrieved Matter . | . . . . Retrieved Components . | . . . . Parts Scanalyzed . | . . . . Part Schematics Acquired . | . . . . Parts Damaged . | . . . . Bothacking | -11 -10 -9 -9 ------------ Run | Scr Mat Mat Sto Used RIF Installer . | . . . . Robots Hacked . | . . . . Non-combat . | . . . . Combat . | . . . . Robot Hacks Applied . | . . . . Relay Couplers Released . | . . . . Robots Rewired . | . . . . Allies Hacked . | . . . . Hacks Repelled . | . . . . Allies | -11 -10 -9 -9 -------- Run | Scr Mat Mat Sto Total Allies . | . . . . Largest Group . | . . . . Highest-Rated Group . | . . . . Highest-Rated Ally . | . . . . Total Orders . | . . . . Ally Attacks . | . . . . Total Damage . | . . . . Kills . | . . . . Allies Corrupted . | . . . . Allies Melted . | . . . . Intel | -11 -10 -9 -9 ------- Run | Scr Mat Mat Sto Robot Analysis Total 1 | . . 1 . Derelict Logs Recovered . | . . . . Drone Launches . | . . . . Drone Recoveries . | . . . . Exploration | -11 -10 -9 -9 ------------- Run | Scr Mat Mat Sto Turns Passed 973 | 72 495 190 216 Spaces Moved 579 | 51 287 127 114 Core 142 | 7 . 21 114 Treads . | . . . . Legs 437 | 44 287 106 . Wheels . | . . . . Hover . | . . . . Flight . | . . . . Fastest Speed 50 | 50 120 100 100 Average Speed 124 | 110 120 116 150 Slowest Speed 200 | 120 120 120 200 Overloaded Moves . | . . . . Propulsion Burnouts . | . . . . Robots Hopped . | . . . . Cave-ins Triggered . | . . . . Exploration Rate (%) 23 | 4 53 16 20 Regions Visited 3 Branch Regions 1 Pre-discovered Areas . | . . . . Known Exits Taken 2 | . 1 1 . Unknown Exits Taken 1 | 1 . . . Scrap Searched . | . . . . Spaces Dug . | . . . . Terrain Destroyed 30 | . . 30 . Melee . | . . . . Projectile . | . . . . AOE 30 | . . 30 . Terrain Rammed . | . . . . Walls Destroyed . | . . . . Machines Disabled . | . . . . Actions | -11 -10 -9 -9 --------- Run | Scr Mat Mat Sto Total 703 | 66 351 144 142 Wait 1 | . . . 1 Move 576 | 50 286 126 114 Hop . | . . . . Pick Up 26 | 10 9 1 6 Fast Attach . | . . . . Attach 20 | 6 3 4 7 Detach . | . . . . Swap 5 | . 3 1 1 Drop 7 | . 5 . 2 Fire 62 | . 45 12 5 Melee 6 | . . . 6 Ram . | . . . . Kick . | . . . . Crush . | . . . . Escape Stasis . | . . . . Rewire . | . . . . Trap . | . . . . Miscellaneous . | . . . . Route ------- -11/Scrapyard -10/Materials (discovered 3 exits: *Mat x3) -9/Materials (discovered 2 exits: *Sto x2) -9/Storage History --------- Turn | Location | Event 2 | -11/Scrapyard | Met Revision 17 3 | -11/Scrapyard | Discovered new exit (range 15) 73 | -11/Scrapyard | Entered Materials 211 | -10/Materials | Identified exit to Materials 301 | -10/Materials | Build established: Mutant 568 | -10/Materials | Entered another Materials area 568 | -9/Materials | Evolved 2 slots: Propulsion x2 608 | -9/Materials | Discovered new exit (range 16) 743 | -9/Materials | Discovered new exit (range 16) 749 | -9/Materials | Core integrity fell below 50% 757 | -9/Materials | Identified exit to Storage 758 | -9/Materials | Entered Storage 769 | -9/Storage | Lost 9 parts (2p4n3w) 894 | -9/Storage | Lost 3 parts (1p1u1w) 906 | -9/Storage | Core integrity fell below 20% 974 | -9/Storage | Destroyed by Y-45 Defender with Heavy Assault Rifle Last Messages --------------- 00891_ L-31 Rogue knocked back. 00894_ K-01 Serf collects debris. 00894_ L-31 Rogue destroyed. 00897_ K-01 Serf collects debris. 00897_ Acquired 20 matter. 00900_ K-01 Serf collects debris. 00900_ Acquired Katana. 00903_ K-01 Serf collects debris. 00904_ Acquired 30 matter. 00905_ K-01 Serf collects debris. 00908_ Acquired Imp. Ion Engine. 00908_ Lgt. Ion Engine destroyed. 00910_ K-01 Serf collects debris. 00910_ Dropped Hvy. Hammer. 00911_ Dropped Sml. Storage Unit. 00912_ K-01 Serf collects debris. 00915_ R-06 Scavenger collects Sml. Storage Unit. 00945_ Acquired 10 matter. 00952_ K-01 Serf collects debris. 00974_ Imp. Ion Engine destroyed. Map ----- +----------------------------------------------------+ | ???????????????????????????????????????? | | ???????????????????????????????????????? | | ???????????????????????????????????????? | | ???????????????????????????????????????? | | ???????????????????????????????????????? | | ???????????????????????????????????????? | | ???????????????????????????????????????? | | ???????????????????????????????????????? | | ???????????????????????????????????????? | | ???????????????????????????????????????? | | ???????????????????????????????????????? | | ???????????????????????????????????????? | | ???????????????????????????????????????? | | ???????????????????????????????????????? | | ???????????????????????????????????????? | | ???????????????????????????????????????? | | ???????????????????????????????????????? | | ??????????########?????????????????????? | | ??????????# #?????????????????????? | | ??????????# #?????????????????????? | | ??????????#""" #?????????????????????? | | ??????????#""" #???#?????????????????? | | ??????????#""" #?? #?????????????????? | | ??????????# #?? #?????????????????? | | ??????????####+#####k#?????????????????? | | ??????######## @ +?????????????????? | | ??????# | # #?????????????????? | | ??????# # #####+????????????? | | ?????# !!! + ??????? | | ??????# !!! # ##### ##### ??????? | | ??????# !!! # ###???#####??????????? | | ??????# #Y + ??? +??????????? | | ??????######## #?? ! #??????????? | | ????########## #? ???????????? | | ????# # """ ""?????????????? | | ????# %+ """ ""?????????????? | | ????# # """ ""?????????????? | | ????# ###### ####?? ???????????? | | ????# #????#r#??????? #??????????? | | ????# #????# #########?####??????????? | | ????# #????# ????????? | | ????# #????# ######## #??????????????? | | ????# #????# #???????????????????????? | | ????# ######+####????????????????????? | | ????# # #????????????????????? | | ????# # ##### #??????????????? | | ????# # + +??????????????? | | ????# # ##### #??????????????? | | ????# + #????????????????????? | | ????# # /% #????????????????????? | +----------------------------------------------------+ Best States ------------- Heat Dissipation 28 Energy Generation 12 Energy Capacity 265 Matter Stores 300 Matter Capacity 300 Sight Range 18 Terrain Scan Density 10 Resistance: KI 20 Resistance: TH 20 Resistance: EX 20 Resistance: EM 20 Resistance: I 20 Resistance: S 20 Resistance: P 20 Evasion (%) 40 Offensive Hacking 10 Item Schematics ----------------- None Robot Schematics ------------------ None Fabricated ------------ Nothing Alien Tech Used ----------------- None Achievements -------------- None Challenges ------------ None Game ------ Seed FieldAlphaCasing Manual? 0 Play Time 00:19:09 Cumulative 7.7 hours Start 2021.03.30 @ 17:58:19 End 2021.03.30 @ 18:15:07 Sessions 1 Manual Loads 0 Difficulty Adventurer Special Mode None Game No. 6 Rogue 0 Adventurer 6 Explorer 0 Win Type - Total 0 Types 0/0/0/0/0/0/0/0/0 Lore% 17 Gallery% 9 Achievement% 11 Wizard Run 0 Options --------- ASCII 0 Keyboard 0 Movement Mouse Keybinds 0 Fullscreen 1 Font 16/SmallcapsGlow Map View 76x50 Tactical HUD 1 Map Filters NONE Filters NONE Steam 1 RUN: 3f5b811c-5521-4660-9535-67ecf5654d0c